{"text_format":"1","workbook":"xlsx","n_sheets":1,"sheets":["E1000295-v1"],"not_rendered":{"charts":0,"images":1,"macros":1,"external_links":0,"defined_names":11,"comments":1,"pivot_tables":0},"unopened":[],"bounds":{"document_bytes":16777216,"sheet_cells":100000,"rows_first":2000,"rows_last":500,"rows_between":2000,"halvings":0,"cell_chars":16384,"cell_head_chars":4096},"cells_cut":0,"cells_raw":0,"read":"whole","date_system":"1900"}

{"sheet":"E1000295-v1","index":0,"n_rows":253,"n_cols":27,"rows_kept":253,"cut":false,"hidden":false,"merged":[[252,22,252,25],[39,3,39,9],[40,19,40,20],[41,0,41,29],[113,0,113,29],[54,0,54,29],[31,22,38,22],[31,23,38,23],[31,25,38,25],[33,26,36,29],[38,10,38,13],[31,24,37,24],[10,2,10,4],[13,2,13,4],[14,2,14,4],[11,2,11,4],[18,2,18,5],[15,2,15,4]]}
[]
[null,"CALIFORNIA INSTITUTE OF TECHNOLOGY"]
[]
[]
[]
[null,"FORMAL DRAWING TREE REFERENCE DOCUMENT"]
[]
[null,"TITLE: ","aLIGO TCS UHV H2 CO2 MIRROR ASSEMBLIES"]
[null,null,"for Production"]
[]
[null,"DOCUMENT CONTROL NO.:","E1000884",null,null,"-v2"]
[null,"RELATED DOC. CHANGE NO.: ","E1000883",null,null,"-v2"]
[]
[null,"CONTAINING ASSEMBLIES:","D1001742",null,null,"-v3"]
[null,null,"D1002431",null,null,"-v3"]
[null,null,"D1100293",null,null,"-v1"]
[]
[null,"AUTHOR: ","M. JACOBSON"]
[null,"DATE: ","2011-02-18"]
[]
[null,"PURPOSE: ","This document is the formal reference for necessary revisions of each child of the stated assemblies, and the total necessary quantities for all items."]
[]
[]
[]
[]
[]
[]
[]
[]
[]
[]
["Subsystem:","RH",null,null,null,null,null,null,null,null,null,null,null,null,null,null,null,null,null,null,null,null,"PDR","delta-PDR","FDR","XXX"]
["Reporter:","Mindy Jacobson"]
["Date:","2010-08-09",null,null,null,null,null,null,null,null,null,null,null,null,null,null,null,null,null,null,null,null,null,null,null,null,"RESERVED for\nPROCUREMENT TRACKING"]
[]
[null,"Total No. Dwgs = ",{"$f":"COUNT(U43:U113,U150:U229)","v":80}]
[null,"Aggregate %-complete = ",{"$f":"SUM(U43:U113,U150:U229)/C36","v":22}]
[]
[null,null,null,null,null,null,null,null,null,null,"QUANTITY"]
["DCN","NOTES","Level","INDENTURE CHART",null,null,null,null,null,null,"REQ'd","SPARE","TOT.","UNITS","DWG TREE REF. NO.","MATERIAL","DCC No.","NAME","TYPE","MODEL STATUS","DWG STATUS","SOURCE","REV.","REV.","REV.","REV."]
["No.",null,null,null,null,null,null,null,null,null,null,null,null,null,null,null,null,null,null,"% COMPLETE"]
["                     EXTERNAL TO VACUUM"]
[null,null,0,null,null,null,null,null,null,null,1,null,null,"EA",null,null,"D1002047","aLIGO TCS RH ELEMENT WINDING ASSY","TopAssy",90,0,"MTS","N/A","N/A","V1"]
[null,null,1,{"$f":"$C44","v":1},1,1,1,1,1,1,1,null,null,"EA",null,null,"D1000682","[TCS] RH GLASS ROD INSULATOR","PRT",100,100,"MTS","N/A","V1","V2"]
[null,null,1,1,1,1,1,1,1,1,{"$f":"2*0.125*PI()*300+2","v":237.61944901923448},null,null,"IN",null,null,null,"NICHROME WIRE, 24 BNC [DIA .5 MM]","PRT",0,0,"OTS","N/A"]
[null,null,1,1,1,1,1,1,1,1,1,null,null,"EA",null,null,"D1001819","RH ELEMENT RETAINER LEFT [9 O'CLOCK POSITION]","PRT",90,90,"MTS","N/A","N/A","V1"]
[null,null,1,1,1,1,1,1,1,1,1,null,null,"EA",null,null,"D1001858","RH ELEMENT RETAINER RIGHT [3 O'CLOCK POSITION]","PRT",90,90,"MTS","N/A","N/A","V1"]
[null,null,1,1,1,1,1,1,1,1,2,null,null,"EA",null,null,"D1001849","UPPER COPPER PLATE","PRT",90,90,"MTS","N/A","N/A","V1"]
[null,null,1,1,1,1,1,1,1,1,2,null,null,"EA",null,null,"D1001850","LOWER COPPER PLATE","PRT",90,90,"MTS","N/A","N/A","V1"]
[null,null,1,1,1,1,1,1,1,1,2,null,null,"EA",null,null,"C-210","SS SHCS-V #2-56 UNC 2A X .625 LONG","HW",100,0,"OTS","N/A","N/A"]
[null,null,1,1,1,1,1,1,1,1,2,null,null,"EA",null,null,"N-256","SS HEX NUT #2-56 UNC 2B","HW",100,0,"OTS","N/A","N/A"]
[null,null,1,1,1,1,1,1,1,1,1,null,null,"EA",null,null,"D1002045","aLIGO TCS RH ELEMENT WINDING TOOL","PRT",75,0,"MTS","N/A","N/A","V1"]
[null,null,1,1,1,1,1,1,1,1,4,null,null,"EA",null,null,"C-406","SS SHCS-V #4-40 UNC 2A X .375 LONG","HW",100,0,"OTS","N/A","N/A"]
[]
["                     ELECTRONICS"]
["{ }","OTS ?",0,{"$f":"$C56","v":0},0,0,0,0,0,0,"?",null,null,"EA",null,null,"DXXXXXXX","aLIGO TCS RH POWER SUPPLY","ASSY",0,0,null,"N/A"]
[null,null,1,{"$f":"$C57","v":1},1,1,1,1,1,1,null,null,null,"EA",null,null,null,"RH POWER SUPPLY ASSY HARDWARE","HW",0,0,"OTS","N/A"]
[null,null,1,1,1,1,1,1,1,1,null,null,null,"EA",null,null,null,"BOARD LAYOUT",null,0,0,"MTS","N/A"]
[null,null,1,1,1,1,1,1,1,1,null,null,null,"EA",null,null,null,"GERBER FILES",null,0,0,"MTS","N/A"]
[null,null,1,1,1,1,1,1,1,1,null,null,null,"EA",null,null,null,"SCEMATICS",null,0,0,"MTS","N/A"]
[null,null,1,1,1,1,1,1,1,1,null,null,null,"EA",null,null,null,"WIRING DIAGRAMS",null,0,0,"MTS","N/A"]
[]
["{ }",null,0,{"$f":"$C63","v":0},0,0,0,0,0,0,"?",null,null,"EA",null,null,"DXXXXXXX","aLIGO TCS RH DRIVER","ASSY",0,0,null,"N/A"]
[null,null,1,1,1,1,1,1,1,1,null,null,null,"EA",null,null,null,"RH DRIVER ASSY HARDWARE","HW",0,0,"OTS","N/A"]
[null,null,1,1,1,1,1,1,1,1,null,null,null,"EA",null,null,null,"BOARD LAYOUT",null,0,0,"MTS","N/A"]
[null,null,1,1,1,1,1,1,1,1,null,null,null,"EA",null,null,null,"GERBER FILES",null,0,0,"MTS","N/A"]
[null,null,1,1,1,1,1,1,1,1,null,null,null,"EA",null,null,null,"SCEMATICS",null,0,0,"MTS","N/A"]
[null,null,1,1,1,1,1,1,1,1,null,null,null,"EA",null,null,null,"WIRING DIAGRAMS",null,0,0,"MTS","N/A"]
[]
["{ }",null,0,{"$f":"$C70","v":0},0,0,0,0,0,0,"?",null,null,"EA",null,null,"DXXXXXXX","aLIGO TCS RH A-D CONVERTER","ASSY",0,0,null,"N/A"]
[null,null,1,1,1,1,1,1,1,1,null,null,null,"EA",null,null,null,"RH A-D CONVERTER ASSY HARDWARE","HW",0,0,"OTS","N/A"]
[null,null,1,1,1,1,1,1,1,1,null,null,null,"EA",null,null,null,"BOARD LAYOUT",null,0,0,"MTS","N/A"]
[null,null,1,1,1,1,1,1,1,1,null,null,null,"EA",null,null,null,"GERBER FILES",null,0,0,"MTS","N/A"]
[null,null,1,1,1,1,1,1,1,1,null,null,null,"EA",null,null,null,"SCEMATICS",null,0,0,"MTS","N/A"]
[null,null,1,1,1,1,1,1,1,1,null,null,null,"EA",null,null,null,"WIRING DIAGRAMS",null,0,0,"MTS","N/A"]
[]
["{ }",null,0,{"$f":"$C77","v":0},0,0,0,0,0,0,"?",null,null,"EA",null,null,"DXXXXXXX","aLIGO TCS RH D-A CONVERTER","ASSY",0,0,null,"N/A"]
[null,null,1,1,1,1,1,1,1,1,null,null,null,"EA",null,null,null,"RH D-A CONVERTER ASSY HARDWARE","HW",0,0,"OTS","N/A"]
[null,null,1,1,1,1,1,1,1,1,null,null,null,"EA",null,null,null,"BOARD LAYOUT",null,0,0,"MTS","N/A"]
[null,null,1,1,1,1,1,1,1,1,null,null,null,"EA",null,null,null,"GERBER FILES",null,0,0,"MTS","N/A"]
[null,null,1,1,1,1,1,1,1,1,null,null,null,"EA",null,null,null,"SCEMATICS",null,0,0,"MTS","N/A"]
[null,null,1,1,1,1,1,1,1,1,null,null,null,"EA",null,null,null,"WIRING DIAGRAMS",null,0,0,"MTS","N/A"]
[]
["{ }",null,0,{"$f":"$C84","v":0},0,0,0,0,0,0,"?",null,null,"?",null,null,"DXXXXXXX","aLIGO TCS RH IN-AIR CABLE ASSY","ASSY",0,0,null,"N/A"]
[null,null,null,null,null,null,null,null,null,null,null,null,null,null,null,null,null,null,null,0,0,null,"N/A"]
[null,null,null,null,null,null,null,null,null,null,null,null,null,null,null,null,null,null,null,0,0,null,"N/A"]
[]
["{ }",null,0,{"$f":"$C88","v":0},0,0,0,0,0,0,1,null,null,"EA",null,null,"D1001517","aLIGO TCS RH IN-VAC CABLE ASSY","ASSY",50,0,"MTS","N/A"]
[null,null,1,1,1,1,1,1,1,1,1,null,null,"EA",null,null,"D1001518","UPPER RH SEGMENT TO LOWER QUAD TERM BLOCK","ASSY",75,0,"MTS","N/A","N/A","V1"]
[null,"OMEGA",2,2,2,2,2,2,2,2,1,null,null,"EA",null,null,"PN EXGG-4CU-26S","Ceramic Pt RTD + Wire PN EXGG-4CU-26S","PRT",0,0,"OTS","N/A"]
[null,"AccuGlass Inc",2,2,2,2,2,2,2,2,4,null,null,"EA",null,null,"PN 111155","PEEK CABLE TIE, ACCUGLASS PN 111155","PRT",0,0,"OTS","N/A"]
[null,"AccuGlass Inc",2,2,2,2,2,2,2,2,39,null,null,"IN",null,null,"PN 112140","SHIELDED 4-TWISTED PAIR WIRE, ACCUGLASS PN 112140","PRT",100,0,"MTS","N/A"]
[null,"AccuGlass Inc",2,2,2,2,2,2,2,2,2,null,null,"EA",null,null,"PN 111022","USER END 400 CONNECTOR ASSY","PRT",100,100,"OTS","N/A"]
[null,"EMERY'S MODEL",2,2,2,2,2,2,2,2,1,null,null,"EA",null,null,null,"UHV MALE 25D CONNECTOR","PRT",100,0,"MTS","N/A"]
[null,null,1,1,1,1,1,1,1,1,1,null,null,"EA",null,null,"D1001519","LOWER RH SEGMENT TO LOWER QUAD TERM BLOCK","ASSY",75,0,"MTS","N/A","N/A","V1"]
[null,"OMEGA",2,2,2,2,2,2,2,2,1,null,null,"EA",null,null,"PN EXGG-4CU-26S","Ceramic Pt RTD + Wire PN EXGG-4CU-26S","PRT",0,0,"OTS","N/A"]
[null,"AccuGlass Inc",2,2,2,2,2,2,2,2,4,null,null,"EA",null,null,"PN 111155","PEEK CABLE TIE, ACCUGLASS PN 111155","PRT",0,0,"OTS","N/A"]
[null,"AccuGlass Inc",2,2,2,2,2,2,2,2,"XX",null,null,"IN",null,null,"PN 112140","SHIELDED 4-TWISTED PAIR WIRE, ACCUGLASS PN 112140","PRT",100,0,"MTS","N/A"]
[null,"AccuGlass Inc",2,2,2,2,2,2,2,2,2,null,null,"EA",null,null,"PN 111022","USER END 400 CONNECTOR ASSY","PRT",100,100,"OTS","N/A"]
[null,"EMERY'S MODEL",2,{"$f":"$C100","v":2},2,2,2,2,2,2,1,null,null,"EA",null,null,null,"UHV MALE 25D CONNECTOR","PRT",100,0,"MTS","N/A"]
[null,null,1,1,1,1,1,1,1,1,1,null,null,"EA",null,null,"D1001520","LOWER QUAD TERM BLOCK TO UPPER QUAD TERM BLOCK","ASSY",75,0,"MTS","N/A"]
[null,null,2,2,2,2,2,2,2,2,1,null,null,"EA",null,null,"D1001755","CUSTOM BRKT, 25D CONNECTOR INTERFACE","PRT",100,0,"MTS","N/A"]
[null,"EMERY'S MODEL",2,2,2,2,2,2,2,2,2,null,null,"EA",null,null,null,"UHV FEMALE 25D CONNECTOR","PRT",100,0,"MTS","N/A"]
[null,"AccuGlass Inc",2,2,2,2,2,2,2,2,"XX",null,null,"IN",null,null,"PN 112143","SHIELDED 12-TWISTED PAIR WIRE, ACCUGLASS PN 112143","PRT",100,0,"OTS","N/A"]
[null,null,2,2,2,2,2,2,2,2,null,null,null,"EA",null,null,null,"HARDWARE","HW",0,0,"OTS","N/A"]
[null,"EMERY'S MODEL",2,2,2,2,2,2,2,2,1,null,null,"EA",null,null,null,"UHV MALE 25D CONNECTOR","PRT",100,0,"MTS","N/A"]
[null,null,1,1,1,1,1,1,1,1,1,null,null,"EA",null,null,"D1001521","UPPER QUAD TERM BLOCK TO FEED-THROUGH","ASSY",75,0,"MTS","N/A"]
[null,null,2,2,2,2,2,2,2,2,1,null,null,"EA",null,null,"D1001756","CUSTOM BRKT, 25D CONNECTOR INTERFACE","PRT",100,0,"MTS","N/A"]
[null,"EMERY'S MODEL",2,2,2,2,2,2,2,2,2,null,null,"EA",null,null,null,"UHV FEMALE 25D CONNECTOR","PRT",100,0,"MTS","N/A"]
[null,"AccuGlass Inc",2,2,2,2,2,2,2,2,"XX",null,null,"IN",null,null,"PN 112143","SHIELDED 12-TWISTED PAIR WIRE, ACCUGLASS PN 112143",null,100,0,"OTS","N/A"]
[null,"EMERY'S MODEL",2,2,2,2,2,2,2,2,1,null,null,"EA",null,null,null,"UHV MALE 25D CONNECTOR","PRT",100,0,"MTS","N/A"]
[null,null,2,2,2,2,2,2,2,2,null,null,null,"EA",null,null,null,"HARDWARE",null,0,0,"OTS","N/A"]
[]
["                     INTERNAL TO VACUUM"]
["E900345-v1",null,0,{"$f":"$C115","v":0},0,0,0,0,0,0,1,null,null,"EA",null,null,"D0901269","ADV_LIGO_TCS_RING_HEATER_AND_SHIELD_ASSEM","TopAssy",100,100,"MTS","v2",null,null,null,{"$f":"1948.5*15","v":29227.5}]
[null,null,1,1,1,1,1,1,1,1,1,null,null,"EA",1,null,"D0902351","ADLIGO TCS RING HEATER SHIELD","PRT",100,100,"MTS","V1"]
[null,null,1,1,1,1,1,1,1,1,1,null,null,"EA",2,null,"D0902408","ADLIGO TCS RING HEATER BACK PLATE RH","PRT",100,90,"MTS","N/A"]
[null,null,1,1,1,1,1,1,1,1,1,null,null,"EA",3,null,"D0902409","ADLIGO TCS RING HEATER BACK PLATE LH","PRT",100,90,"MTS","N/A"]
[null,null,1,1,1,1,1,1,1,1,2,null,null,"EA",4,null,"D0902410","ADLIGO TCS RING HEATER BLOCK","PRT",100,90,"MTS","N/A"]
[null,"WATLOW (?)",1,1,1,1,1,1,1,1,1,null,null,"EA",5,null,"D0901279","TCS_RING_HEATER_ELEMENT","PRT",100,0,"OTS","N/A"]
[null,"QTY INCL (1) SPR",1,1,1,1,1,1,1,1,9,null,null,"EA",6,null,null,"#4-40X.188 FLT HD SKT SCR, SST [18-8 SST]","HW",100,0,"OTS"]
["E900345-v1","LASTI retrofit assy",0,0,0,0,0,0,0,0,null,null,null,"EA",null,null,"D0902447","LASTI TCS RING HEATER INSTALLATION RETROFIT","ASSY",100,100,"MTS","V1","N/A"]
[null,null,1,1,1,1,1,1,1,1,1,null,null,"EA","{ REF }",null,"D0902351","ADLIGO TCS RING HEATER SHIELD","PRT",100,100,"MTS","V1"]
["{ }","CONSTRAINT",2,2,2,2,2,2,2,2,1,null,null,"EA","{ }",null,"D1000270","TCS ALLOWABLE RH ELEMENT ENVELOPE","VOL",100,100,"OTS","V1"]
[null,null,1,1,1,1,1,1,1,1,1,null,null,"EA",1,null,"D0902448","LASTI TCS RING HEATER BACK PLATE RH","PRT",100,100,"MTS","V1"]
[null,null,1,1,1,1,1,1,1,1,1,null,null,"EA",2,null,"D0902449","LASTI TCS RING HEATER BACK PLATE LH","PRT",100,100,"MTS","V1"]
[null,"DWG.TR E900344-V1",1,1,1,1,1,1,1,1,2,null,null,"EA","{ REF }",null,"D0902450","LASTI TCS RING HEATER BLOCK","PRT",100,100,"MTS","V1"]
[null,null,1,1,1,1,1,1,1,1,4,null,null,"EA","{ }",null,null,"FH SCR, PHILIPS, #4-40 X 3/16 LG, SST","HW",100,0,"OTS"]
[null,null,1,1,1,1,1,1,1,1,4,null,null,"EA","{ }",null,null,"FH SCR, PHILIPS, #2-56 X 3/16 LG, SST","HW",100,0,"OTS"]
["{ }","QTYs ARE PER OPTIC",0,0,0,0,0,0,0,0,2,null,null,"EA",null,null,"D1000978","ALIGO [TCS] RING HEATER ASSY","TopAssy",90,0,"MTS","N/A","V1","N/A"]
["E1000154-v1",null,1,1,1,1,1,1,1,1,1,null,null,"EA",null,null,"D1000969","ALIGO TCS MONOLITH RH SHIELD","PRT",100,90,"MTS","N/A","V2","N/A",null,{"$f":"2780*30","v":83400}]
["{ }","CONSTRAINT",2,2,2,2,2,2,2,2,1,null,null,"EA",null,null,"D1000270","TCS ALLOWABLE RH ELEMENT ENVELOPE","VOL",100,100,"OTS","N/A","V1"]
[null,"either this OR D1000945",1,1,1,1,1,1,1,1,1,null,null,"EA",null,null,"D1001187","TCS RING HEATER ELEMENT ASSEMBLY, LASTI","ASSY",50,0,"MTS","N/A","V1"]
[null,null,2,2,2,2,2,2,2,2,1,null,null,"EA",null,null,"D1000682","[TCS] RH GLASS ROD INSULATOR","PRT",100,100,"MTS","N/A",null,null,null,{"$f":"100*30","v":3000}]
[null,null,2,2,2,2,2,2,2,2,2,null,null,"EA",null,null,"D1001063","GLASS ROD RETAINER","PRT",90,0,"MTS","N/A"]
[null,null,2,2,2,2,2,2,2,2,60,null,null,"IN",null,null,null,"NICHROME WIRE, 24 BNC [DIA .5 MM]","PRT",0,0,"OTS","N/A"]
[null,"either this OR D1001187",1,1,1,1,1,1,1,1,1,null,null,"EA",null,null,"D1000945","ALIGO TEST MASS RING HEATER ASSEMBLY [M.A._UF]","HW",90,90,"MTS","N/A","V1",null,null,{"$f":"4000*30","v":120000}]
[null,null,2,2,2,2,2,2,2,2,2,null,null,"EA",null,null,"D1000970","ALIGO TEST MASS RING HEATER SUPPORT BLOCK","PRT",100,90,"MTS","N/A"]
[null,null,2,2,2,2,2,2,2,2,2,null,null,"EA",null,null,"D1000956","ALIGO TEST MASS RING HEATER WIRE INTERSECTION BLOCK","PRT",100,90,"MTS","N/A"]
[null,null,2,{"$f":"$C140","v":2},2,2,2,2,2,2,4,null,null,"EA",null,null,"D1001016","ALIGO TEST MASS RING HEATER WIRE PLATE","PRT",100,90,"MTS","N/A"]
[null,null,2,2,2,2,2,2,2,2,1,null,null,"EA",null,null,"D1000943","ALIGO TEST MASS RING HEATER INNER RING","PRT",100,90,"MTS","N/A","V2","N/A",null,{"$f":"625*30","v":18750}]
[null,null,2,2,2,2,2,2,2,2,1,null,null,"EA",null,null,"D1000944","ALIGO TEST MASS RING HEATER OUTER RING","PRT",100,90,"MTS","N/A","V2","N/A",null,{"$f":"625*30","v":18750}]
[null,null,2,2,2,2,2,2,2,2,3,null,null,"EA",null,null,null,"SS FHCS 2-56 X .25 L","HW",100,0,"OTS","N/A"]
[null,"Ortech",2,2,2,2,2,2,2,2,2,null,null,"EA",null,null,null,"ORTECH CERAMIC SET SCREW 2-56 X .25 L","HW",100,0,"OTS","N/A"]
[null,null,2,{"$f":"$C145","v":2},2,2,2,2,2,2,4,null,null,"EA",null,null,null,"SS VENTED SHCS 2-56 X .1875 L","HW",100,0,"OTS","N/A"]
[null,null,2,2,2,2,2,2,2,2,4,null,null,"IN",null,null,null,"INSULATED COPPER WIRE, 28 AWG","PRT",100,0,"OTS","N/A"]
[null,null,1,1,1,1,1,1,1,1,2,null,null,"EA",null,null,"Dxxxxxxx","IN-LINE UHV CONNECTOR ASSY","ASSY",100,0,"MTS","N/A","N/A","V1"]
[null,"AccuGlass Inc",2,2,2,2,2,2,2,2,1,null,null,"EA",null,null,"PN 100171","ACCUGLASS CONNECTOR 100171","PRT",100,0,"OTS","N/A","N/A"]
[null,null,1,1,1,1,1,1,1,1,1,null,null,"EA",null,null,"D1001516","WIRE GUIDE BUSHING","PRT",100,0,"MTS","N/A","N/A","V1"]
[]
[null,"PER OPTIC QTY",0,null,null,null,null,null,null,null,1,1,{"$f":"SUM(K151:L151)","v":2},"EA",null,null,"D1002027","aLIGO SYS-TCS INTEGRATION OF RH WITH TM","TopAssy",90,0,"MTS","N/A","N/A","V1"]
["E1000883","BSC7 = mirror of BSC8",0,{"$f":"$C152","v":0},0,0,0,0,0,0,1,0,{"$f":"L152+K152","v":1},"EA","E1000884",null,"D1001742","aLIGO TCS CO2P SYS STEERING OPTICS ASSY, H2, BSC7","TopAssy",100,90,"MTS","N/A","N/A","v3"]
[null,null,1,1,1,1,1,1,1,1,1,0,{"$f":"L153+K153","v":1},"EA",null,"Al, Au-coated","D1001194","CO2P ITMX M1 ASSEMBLY ENVELOPE, BSC7","PRT",100,90,"MTS","N/A","N/A",null,null,{"$f":"3000*15","v":45000}]
[null,"KUGLER",1,null,null,1,null,null,null,null,1,0,1,"EA",null,"Cu","D1001727","TCS H2IN-VAC MIRROR [Æ12 IN, Au-COATED Cu]","PRT",100,100,"MTS","N/A","V1","v2"]
[null,"HELICOIL",2,2,2,2,2,2,2,2,8,1,9,"EA",null,"N60","TYPE 1185","NITRONIC-60, #8-32, 2-1/2 D, .410 LONG, SIZE 2CN","HW",0,0,"OTS","N/A"]
[null,null,1,1,1,1,1,1,1,1,2,0,2,"EA",null,"SSTL","D1002313","TCS UHV FINE ADJUST PIVOT ROD","PRT",100,90,"MTS","N/A","N/A","v2"]
[null,null,1,1,1,1,1,1,1,1,1,0,1,"EA",null,"Al 6061","D1002312","TCS UHV AZ FINE ADJUST PIVOT PLATE, BSC7","PRT",100,90,"MTS","N/A","N/A","v2"]
[null,"HELICOIL",2,2,2,2,2,2,2,2,2,1,3,"EA",null,"N60","TYPE 1191","NITRONIC-60, #10-32, 2 D, .380 LONG, SIZE 3CN","HW",100,100,"OTS","N/A","N/A",null,"V1"]
[null,null,1,1,1,1,1,1,1,1,1,0,1,"EA",null,"Al 6061","D1002311","TCS UHV EL FINE ADJUST PIVOT PLATE","PRT",null,null,"MTS",null,null,"v2"]
[null,"HELICOIL",2,2,2,2,2,2,2,2,1,1,2,"EA",null,"N60","TYPE 1191","NITRONIC-60, #10-32, 2 D, .380 LONG, SIZE 3CN","HW",100,90,"OTS","N/A","N/A"]
[null,"UC COMPONENTS",1,1,1,1,1,1,1,1,4,1,5,"EA",null,"SSTL, Ag PLT","C-822-A","VENTED, Ag PLATED SS SHCS #8-32 X 1-3/8 LONG","HW",100,90,"OTS","N/A","N/A"]
[null,"UC COMPONENTS",1,1,1,1,1,1,1,1,4,1,5,"EA",null,"SSTL, Ag PLT","C-816-A","VENTED, Ag PLATED SS SHCS #8-32 X 1 LONG","HW",100,0,"OTS","N/A","N/A"]
[null,"UC COMPONENTS",1,1,1,1,1,1,1,1,8,2,10,"EA",null,"SSTL","WFV-08","VENTED FLAT WASHER #8","HW",100,0,"OTS","N/A","N/A"]
[null,"UC COMPONENTS",1,1,1,1,1,1,null,null,5,1,6,"EA",null,"SSTL","SHCV-4436","VENTED HEX HD 1.5IN SHOULDER SHC #10-32","HW",null,null,"OTS"]
[null,"UC COMPONENTS",1,1,1,1,1,1,null,null,27,3,30,"EA",null,"SSTL, Ag PLT","WFV-25","VENTED FLAT WASHER, 0.26 ID","HW",null,null,"OTS"]
[null,null,1,1,1,1,1,1,null,null,1,0,1,"EA",null,"SSTL","D1002287","TCS UHV BRACKET [LONG SIDE], BSC7","PRT",null,null,"MTS",null,null,"v3"]
[null,"HELICOIL",2,2,2,2,2,2,2,2,1,1,{"$f":"L167+K167","v":2},"EA",null,"N60","TYPE 1191","NITRONIC-60, #10-32, 2-1/2 D, .475 LONG, SIZE 3CN","HW",100,90,"OTS"]
[null,null,1,1,1,1,1,1,null,null,1,0,1,"EA",null,"SSTL","D1002315","TCS UHV BRACKET, SHORT SIDE, BSC7","PRT",null,null,"MTS",null,null,"v3"]
[null,"HELICOIL",2,2,2,2,2,2,2,2,1,1,2,"EA",null,"N60","TYPE 1191","NITRONIC-60, #10-32, 2-1/2 D, .475 LONG, SIZE 3CN","HW",100,90,"OTS"]
[null,null,1,1,1,1,1,1,null,null,1,0,1,"EA",null,"Al","D1002317","TCS UHV LONG SUPPORT, BSC7 & BSC8","PRT",null,null,"MTS",null,null,"v3"]
[null,null,1,1,1,1,1,1,null,null,1,0,1,"EA",null,"Al","D1002327","TCS UHV SHORT SUPPORT, BSC7 & BSC8","PRT",null,null,"MTS",null,null,"v3"]
[null,"aLIGO SYS procurement",1,1,1,1,1,1,null,null,2,1,3,"EA",null,"VITON","D1003328","TCS UHV H2 ASSEMBLY INTERFACE DAMPER","PRT",null,null,"MTS",null,null,"v1"]
[null,null,1,1,1,1,1,1,null,null,1,0,1,"EA",null,"Al","D1002333","TCS UHV BACK BRACE, BSC7 & BSC8","PRT",null,null,"MTS",null,null,"v3"]
[null,null,1,1,1,1,1,1,null,null,1,0,1,"EA",null,"SSTL","D1002334","TCS UHV COARSE ADJUST PIVOT ROD","PRT",null,null,"MTS",null,null,"v2"]
[null,"UC COMPONENTS",1,1,1,1,1,1,null,null,6,1,7,"EA",null,"SSTL","C-2024-N","SS SHCS 1/4-20 x 1.5 LONG","HW",null,null,"OTS"]
[null,"UC COMPONENTS",1,1,1,1,1,1,1,1,6,1,7,"EA",null,"SSTL, Ag PLT","N-2520-A","SS NUT, HEX HD, 1/4-20, SILVER PLATED","HW",0,0,"OTS","N/A","N/A"]
[null,"UC COMPONENTS",1,1,1,1,1,1,1,1,6,1,{"$f":"L177+K177","v":7},"EA",null,"SSTL","NJ-2520","SS HEX JAM NUT, 1/4-20","HW",null,null,"OTS"]
[]
["E1000883","BSC8 = mirror of BSC7",0,{"$f":"$C179","v":0},0,0,0,0,null,null,1,0,1,"EA","E1000884",null,"D1002431","aLIGO TCS CO2P SYS STEERING OPTICS ASSY, H2, BSC8","TopAssy",null,null,"MTS","N/A","N/A","v3"]
[null,null,1,1,1,1,1,1,null,null,1,0,1,"EA",null,"Cu","D1001198","CO2P ITMY M1 ASSEMBLY ENVELOPE, BSC8","PRT",null,null,"MTS","N/A","N/A"]
[null,"KUGLER",1,1,1,1,1,1,null,null,1,0,1,"EA",null,"Cu","D1001727","TCS H2IN-VAC MIRROR [Æ12 IN, Au-COATED Cu]","PRT",null,null,"MTS","N/A","V1","v2"]
[null,"HELICOIL",2,2,2,2,2,2,null,null,8,1,9,"EA",null,"N60","TYPE 1185","NITRONIC-60,#8-32, 2-1/2 D, .410 LONG, SIZE 2CN","HW",null,null,"OTS","N/A"]
[null,null,1,1,1,1,1,1,null,null,2,0,2,"EA",null,"SSTL","D1002313","TCS UHV FINE ADJUST PIVOT ROD","PRT",null,null,"MTS","N/A","N/A","v2"]
[null,null,1,1,1,1,1,1,null,null,1,0,1,"EA",null,"Al 6061","D1002455","TCS UHV AZ FINE ADJUST PIVOT PLATE, BSC8","PRT",null,null,"MTS","N/A","N/A","v2"]
[null,"HELICOIL",2,2,2,2,2,2,null,null,2,1,3,"EA",null,"N60","TYPE 1191","NITRONIC-60, #10-32, 2 D, .380 LONG, SIZE 3CN","HW",null,null,"OTS","N/A","N/A"]
[null,null,1,1,1,1,1,1,null,null,1,0,1,"EA",null,"Al 6061","D1002311","TCS UHV EL FINE ADJUST PIVOT PLATE","PRT",null,null,"MTS",null,null,"v2"]
[null,"HELICOIL",2,2,2,2,2,2,null,null,1,1,2,"EA",null,"N60","TYPE 1191","NITRONIC-60, #10-32, 2 D, .380 LONG, SIZE 3CN","HW",null,null,"OTS","N/A","N/A"]
[null,"UC COMPONENTS",1,1,1,1,1,1,null,null,4,1,{"$f":"L188+K188","v":5},"EA",null,"SSTL, Ag PLT","C-822-A","VENTED, Ag PLATED SS SHCS #8-32 X 1-3/8 LONG","HW",null,null,"OTS","N/A","N/A"]
[null,"UC COMPONENTS",1,1,1,1,1,1,null,null,4,1,5,"EA",null,"SSTL, Ag PLT","C-816-A","VENTED, Ag PLATED SS SHCS #8-32 X 1 LONG","HW",null,null,"OTS","N/A","N/A"]
[null,"UC COMPONENTS",1,1,1,1,1,1,null,null,8,2,10,"EA",null,"SSTL","WFV-08","VENTED FLAT WASHER #8","HW",null,null,"OTS","N/A","N/A"]
[null,"UC COMPONENTS",1,1,1,1,1,1,null,null,5,1,6,"EA",null,"SSTL","SHCV-4436","VENTED HEX HD 1.5IN SHOULDER SHC #10-32","HW",null,null,"OTS"]
[null,"UC COMPONENTS",1,1,1,1,1,1,null,null,27,3,30,"EA",null,"SSTL, Ag PLT","WFV-25","VENTED FLAT WASHER, 0.26 ID","HW",null,null,"OTS"]
[null,null,1,1,1,1,1,1,null,null,1,0,1,"EA",null,"SSTL","D1002454","TCS UHV BRACKET [LONG SIDE], BSC8","PRT",null,null,"MTS",null,null,"v2"]
[null,"HELICOIL",2,2,2,2,2,2,2,2,1,1,2,"EA",null,"N60","TYPE 1191","NITRONIC-60, #10-32, 2-1/2 D, .475 LONG, SIZE 3CN","HW",100,90,"OTS"]
[null,null,1,1,1,1,1,1,null,null,1,0,1,"EA",null,"SSTL","D1002453","TCS UHV BRACKET, SHORT SIDE, BSC8","PRT",null,null,"MTS",null,null,"v2"]
[null,"HELICOIL",2,2,2,2,2,2,2,2,1,1,2,"EA",null,"N60","TYPE 1191","NITRONIC-60, #10-32, 2-1/2 D, .475 LONG, SIZE 3CN","HW",100,90,"OTS"]
[null,null,1,1,1,1,1,1,null,null,1,0,1,"EA",null,"Al","D1002317","TCS UHV LONG SUPPORT, BSC7 & BSC8","PRT",null,null,"MTS",null,null,"v3"]
[null,null,1,1,1,1,1,1,null,null,1,0,1,"EA",null,"Al","D1002327","TCS UHV SHORT SUPPORT, BSC7 & BSC8","PRT",null,null,"MTS",null,null,"v3"]
[null,"Viton, SYS procurement",1,1,1,1,1,1,null,null,2,1,3,"EA",null,"VITON","D1003328","TCS UHV H2 ASSEMBLY INTERFACE DAMPER","PRT",null,null,"MTS",null,null,"v1"]
[null,null,1,1,1,1,1,1,null,null,1,0,1,"EA",null,"Al","D1002333","TCS UHV BACK BRACE, BSC7 & BSC8","PRT",null,null,"MTS",null,null,"v3"]
[null,null,1,1,1,1,1,1,null,null,1,0,1,"EA",null,"SSTL","D1002334","TCS UHV COARSE ADJUST PIVOT ROD","PRT",null,null,"MTS",null,null,"v2"]
[null,"UC COMPONENTS",1,1,1,1,1,1,null,null,6,1,7,"EA",null,"SSTL","C-2024-N","SS SHCS 1/4-20 x 1.5 LONG","HW",null,null,"OTS"]
[null,"UC COMPONENTS",1,1,1,1,1,1,null,null,6,1,7,"EA",null,"SSTL, Ag PLT","N-2520-A","SS NUT, HEX HD, 1/4-20, SILVER PLATED","HW",null,null,"OTS","N/A","N/A"]
[null,"UC COMPONENTS",1,1,1,1,1,1,null,null,6,1,{"$f":"L204+K204","v":7},"EA",null,"SSTL","NJ-2520","SS HEX JAM NUT, 1/4-20","HW",null,null,"OTS"]
[]
["E1000883","for either BSC7 or BSC8",0,0,0,0,0,0,null,null,1,0,{"$f":"L206+K206","v":1},"EA","E1000884",null,"D1100293","aLIGO TCS TEMPLATE, H2 UHV CO2P MIRROR ASSY","TopAssy",null,null,"MTS",null,null,"v1"]
[null,null,1,1,1,1,1,1,null,null,1,0,{"$f":"L207+K207","v":1},"EA",null,null,"D1100263","aLIGO TCS FIXTURE, H2 UHV MIRROR ASSY","ASSY",null,null,"MTS",null,null,"v2"]
[null,null,2,2,2,2,2,2,null,null,1,0,1,"EA",null,"6061 alloy","D1100265","aLIGO TCS FIXTURE BASE PLATE, H2 STEERING MIRROR ASSY","PRT",null,null,"MTS",null,null,"v2"]
[null,null,2,2,2,2,2,2,null,null,2,0,2,"EA",null,"6061 alloy","D1100266","aLIGO TCS FIXTURE TALL SUPPORT GUSSET","PRT",null,null,"MTS",null,null,"v2"]
[null,null,2,2,2,2,2,2,null,null,2,0,2,"EA",null,"6061 alloy","D1100267","aLIGO TCS FIXTURE SHORT SUPPORT GUSSET","PRT",null,null,"MTS",null,null,"v2"]
[null,null,2,2,2,2,2,2,null,null,4,0,4,"EA",null,"6061 alloy","D1100285","aLIGO TCS FIXTURE RETAINER","PRT",null,null,"MTS",null,null,"v2"]
[null,"HOME DEPOT",2,2,2,2,2,2,null,null,2,2,4,"EA",null,"SSTL","[ N/A ]","HANDLE, 5 IN","PRT",null,null,"OTS"]
[null,"UC COMPONENTS",3,3,3,3,3,3,null,null,8,2,10,"EA",null,"18-8 SSTL","FA-808-N","FHSCS 8-32 X 1/2 LONG, 18-8 SSTL","HW",null,null,"OTS"]
[null,"UC COMPONENTS",3,3,3,3,3,3,null,null,8,2,10,"EA",null,"18-8 SSTL","C-806-N","SHCS 8-32 UNC-2A X 3/8 LONG, 18-8 SSTL","HW",null,null,"OTS"]
[null,"UC COMPONENTS",3,3,3,3,3,3,null,null,8,2,10,"EA",null,"18-8 SSTL","WF-08","FLAT WASHER, #8, NAS 620-C8 OR EQUIVALENT","HW",null,null,"OTS"]
[null,"UC COMPONENTS",3,3,3,3,3,3,null,null,8,2,10,"EA",null,"18-8 SSTL","FA-812-N","FHSCS 8-32 X 3/4 LONG, 18-8 SSTL","HW",null,null,"OTS"]
[null,"UC COMPONENTS",3,3,3,3,3,3,null,null,8,2,10,"EA",null,"18-8 SSTL","N-832","HEX NUT, 8-32","HW",null,null,"OTS"]
[null,"McMASTER-CARR PN",3,3,3,3,3,3,null,null,8,2,10,"EA",null,"18-8 SSTL","96659A103","FLAT WASHER, #8, MS 15795 OR EQUIVALENT","HW",null,null,"OTS"]
[null,null,1,{"$f":"$C219","v":1},1,1,1,1,null,null,2,0,2,"EA",null,"6061 alloy","D1100300","aLIGO TCS INTERFACE TEMPLATE","PRT",null,null,"MTS",null,null,"v2"]
[null,null,1,1,1,1,1,1,null,null,1,0,1,"EA",null,"6061 alloy","D1100297","aLIGO TCS LONG BASE TEMPLATE","PRT",null,null,"MTS",null,null,"v2"]
[null,null,1,1,1,1,1,1,null,null,1,0,1,"EA",null,"6061 alloy","D1100296","aLIGO TCS SHORT BASE TEMPLATE","PRT",null,null,"MTS",null,null,"v2"]
[null,null,1,1,1,1,1,1,null,null,1,0,1,"EA",null,"6061 alloy","D1100298","aLIGO TCS TEMPLATE BRACE","PRT",null,null,"MTS",null,null,"v1"]
[null,null,1,1,1,1,1,1,null,null,1,0,1,"EA",null,"6061 alloy","D1100295","aLIGO TCS FIXTURE TEMPLATE BRACE","PRT",null,null,"MTS",null,null,"v2"]
[null,null,1,1,1,1,1,1,null,null,2,0,2,"EA",null,"6061 alloy","D1100294","aLIGO TCS FIXTURE TEMPLATE","PRT",null,null,"MTS",null,null,"v1"]
[null,"UC COMPONENTS",2,2,2,2,2,2,null,null,6,2,8,"EA",null,"18-8 SSTL","C-2008-N","SHCS 1/4-20 UNC-2A X 0.5 LONG","HW",null,null,"OTS"]
[null,"UC COMPONENTS",2,2,2,2,2,2,null,null,6,2,8,"EA",null,"18-8 SSTL","C-2012-N","SHCS 1/4-20 UNC-2A X 0.75 LONG","HW",null,null,"OTS"]
[null,"MCMASTER P/N",2,2,2,2,2,2,null,null,12,4,16,"EA",null,"18-8 SSTL","96659A106","FLAT WASHER, 1/4 IN, 5/8 OD, MS 15795 OR EQUIV","HW",null,null,"OTS"]
[null,"MCMASTER P/N",2,2,2,2,2,2,null,null,4,2,6,"EA",null,"18-8 SSTL","97365A170","PULL-OUT DOWEL PIN, 1/4 IN, FLAT VENT, 2.5 IN LONG","HW",null,null,"OTS"]
[null,null,null,0,0,0,0,0]
[]
[]
[]
[]
[]
[]
[]
[]
[]
[]
[]
[]
[]
[]
[]
[]
[]
[]
[]
[]
[]
[]
[]
[null,null,null,null,null,null,null,null,null,null,null,null,null,null,null,null,null,null,null,null,null,null,"N/A = NOT APPLICABLE"]